bitfinex-derivatives/quotes_ETHF0:USTF0_20240917
["timestamp","ask_amount","ask_price","bid_price","bid_amount"]
[1726598782990,2.19724234,2359.5,2359.4,0.42373]
[1726598784193,2.19724234,2359.5,2359.4,1.48305]
[1726598784395,2.19724234,2359.5,2359.4,0.42373]
[1726598786594,2.74806406,2359.6,2359.5,1.48299]
[1726598786790,2.74806406,2359.7,2359.6,0.42369]
[1726598786987,2.74806406,2359.7,2359.6,0.81429]
[1726598787597,3.30768091,2359.9,2359.8,0.42365]
[1726598787795,1.22143,2360.0,2359.8,0.42364]
[1726598788102,1.22143,2360.0,2359.7,0.3974]
[1726598788103,1.22143,2360.0,2359.9,0.42364]
[1726598788301,1.22143,2360.0,2359.7,0.3974]
[1726598788500,1.22143,2360.0,2359.8,0.42364]
[1726598788691,1.22143,2360.0,2359.9,0.42364]
[1726598789104,1.22142,2360.0,2359.9,0.42364]
[1726598789706,0.42364,2359.9,2359.8,0.42364]
[1726598789902,2.75172487,2359.9,2359.8,0.42364]
[1726598790105,1.0591,2359.9,2359.6,0.3906]
[1726598790309,3.17557094,2359.8,2359.7,0.42367]
[1726598790599,2.75192094,2359.8,2359.7,0.42367]
[1726598790803,2.75192094,2359.8,2359.4,1.44612]
[1726598790804,1.05919,2359.7,2359.4,0.3868]
[1726598791008,2.20150117,2359.5,2359.4,0.81053]
[1726598791303,0.4237,2359.6,2359.5,0.42371]
[1726598791502,1.05923,2359.6,2359.3,0.4081]
[1726598791701,1.05923,2359.6,2358.9,1.05951]
[1726598791702,3.2078,2359.4,2359.0,0.80556551]
[1726598791904,0.4238,2359.0,2358.9,0.42381]
[1726598792111,2.75191797,2359.0,2358.9,0.42381]
[1726598792297,0.4204,2359.0,2358.9,0.42381]
[1726598792807,3.17220073,2359.0,2358.9,0.42381]
[1726598793396,2.75180073,2359.0,2358.9,0.42381]
[1726598794808,0.42379,2359.1,2359.0,0.42379]
[1726598794998,7.32747,2359.2,2358.7,1.05962]
[1726598795199,2.20055659,2358.9,2358.8,0.42383]
[1726598795997,2.20055659,2358.9,2358.5,0.8275]
[1726598796204,2.20055659,2358.8,2358.7,0.42385]
[1726598796400,5.95849574,2358.9,2358.8,0.42383]
[1726598796608,2.75069574,2358.9,2358.8,0.42383]
[1726598797112,10.21138091,2359.2,2358.9,0.42382]
[1726598797113,2.75069574,2359.0,2358.9,0.42382]
[1726598797507,3.17449574,2359.0,2358.9,0.42382]
[1726598797808,2.75069574,2359.0,2358.9,0.42382]
[1726598798113,2.75066628,2359.0,2358.9,0.42382]
[1726598798505,2.75065636,2359.0,2358.9,0.42382]
[1726598798810,0.42379,2359.1,2359.0,0.4238]
[1726598799204,0.42378,2359.1,2359.0,0.4238]
[1726598799410,0.42378,2359.1,2359.0,0.42379]
[1726598799603,3.6037,2359.2,2358.7,1.05964]
[1726598799804,2.20061559,2358.9,2358.8,1.48341]
[1726598800017,2.75076949,2359.0,2358.8,1.48341]
[1726598800018,2.20061559,2359.0,2358.9,1.48337]
[1726598800208,2.20061559,2359.1,2359.0,1.4833]
[1726598800412,2.20061559,2359.1,2359.0,1.8794]
[1726598800612,2.20061559,2359.1,2359.0,6.1186]
[1726598801906,2.20061559,2359.1,2359.0,13.6859]
[1726598802208,2.20061559,2359.4,2359.1,1.05946]
[1726598802403,1.65038534,2359.2,2359.1,2.11892]
[1726598802607,1.65038534,2359.2,2359.1,6.00188126]
[1726598802810,1.65038534,2359.3,2359.2,1.48317]
[1726598803104,1.65038534,2359.3,2359.2,6.30453126]
[1726598803309,1.65038534,2359.3,2359.2,12.30453126]
[1726598803709,2.20061559,2359.4,2359.3,0.42374]
[1726598803915,2.20061559,2359.4,2359.3,4.66214]
[1726598804822,2.75076949,2359.5,2359.4,0.42373]
[1726598805510,2.75076949,2359.5,2359.0,7.96338]
[1726598805704,2.75076949,2359.5,2359.2,0.42376]
[1726598805705,2.20194141,2359.3,2359.2,0.42376]
[1726598807912,17.67738091,2359.3,2358.6,1.46387]
[1726598808103,1.65140222,2358.8,2358.7,1.00689163]
[1726598808308,2.20168796,2358.9,2358.6,1.46387]
[1726598808514,2.20168796,2358.9,2358.6,1.88774]
[1726598808515,1.65122613,2358.7,2358.6,1.88774]
[1726598808713,1.65122613,2358.7,2358.6,2.47081106]
[1726598808912,1.65122613,2358.7,2358.6,6.71081106]
[1726598809108,2.20168796,2358.8,2358.7,0.42385]
[1726598811711,2.20168796,2358.8,2358.7,8.93049]
[1726598811911,1.65112697,2358.8,2358.7,14.93049]
[1726598812313,2.20168796,2359.0,2358.8,2.54301]
[1726598812314,1.65112697,2358.9,2358.8,2.54301]
[1726598812509,1.65112697,2358.9,2358.8,5.72262]
[1726598812816,4.95409576,2359.1,2359.0,1.4833]
[1726598813016,2.20168796,2359.1,2359.0,4.6911]
[1726598813321,2.7524078,2359.3,2359.1,0.42378]
[1726598813322,2.20028578,2359.2,2359.1,0.42378]
[1726598813516,2.20028578,2359.2,2359.1,1.89804]
[1726598813721,2.7524078,2359.3,2359.2,0.42376]
[1726598813722,2.20028578,2359.3,2359.2,0.42376]
[1726598814017,2.20028578,2359.3,2359.2,1.48317]
[1726598814516,2.20028578,2359.4,2359.3,2.54248]
[1726598814722,1.65080401,2359.4,2359.3,13.49706457]
[1726598814908,1.65080401,2359.4,2359.3,11.95866457]
[1726598815113,2.20028578,2359.5,2359.4,1.48305]
[1726598815423,2.20028578,2359.5,2359.4,5.72145]
[1726598815818,2.20028578,2359.6,2359.5,1.48299]
[1726598816121,2.20028578,2359.6,2359.5,0.42371]
[1726598816316,2.20028578,2359.6,2359.5,4.66211]
[1726598817421,3.3,2359.6,2359.4,0.42372]
[1726598817621,1.2168,2359.5,2359.4,0.42373]
[1726598817822,1.64051,2359.5,2359.4,0.42373]
[1726598818014,1.2168,2359.5,2359.4,0.42373]
[1726598818321,3.0237,2359.5,2359.4,0.42373]
[1726598818717,3.0237,2359.5,2359.0,3.2078]
[1726598818919,1.65021003,2359.1,2358.9,1.05954]
[1726598819219,1.10006859,2359.0,2358.9,1.48336]
[1726598819422,1.10006859,2359.0,2358.9,2.06635261]
[1726598819643,1.10006859,2359.0,2358.9,6.30555261]
[1726598820317,1.10006859,2359.0,2358.9,5.72256]
[1726598820517,1.10006859,2359.0,2358.9,6.30555026]
[1726598820718,1.10006859,2359.0,2358.9,9.60555026]
[1726598820916,1.10006859,2359.0,2358.9,16.66510026]
[1726598821327,1.65021003,2359.1,2359.0,1.4833]
[1726598821624,1.65023587,2359.2,2359.1,1.48324]
[1726598821824,1.65023587,2359.2,2359.1,2.06621852]
[1726598822025,2.2004,2359.3,2359.2,0.42376]
[1726598823121,2.2008962,2359.3,2359.2,0.42375]
[1726598823315,2.7524078,2359.4,2359.3,0.42374]
[1726598823518,3.1761378,2359.4,2359.3,0.42374]
[1726598823716,2.7524078,2359.4,2359.3,0.42374]
[1726598823927,3.1761378,2359.4,2359.2,0.42375]
[1726598824223,9.2602078,2359.3,2358.7,1.8078477]
[1726598824414,1.65084579,2358.9,2358.8,0.58301877]
[1726598824618,1.65084579,2358.9,2358.4,1.22796551]
[1726598824619,3.3,2358.9,2358.4,0.80556551]
[1726598824835,2.2009025,2358.6,2358.4,0.80556551]
[1726598825027,3.1762678,2358.7,2358.5,0.42389]
[1726598825226,2.7524078,2358.7,2358.6,0.42387]
[1726598825525,3.1762678,2358.7,2358.5,0.42388]
[1726598825926,4.9525819,2358.6,2358.3,0.42392]
[1726598826128,2.20014269,2358.4,2358.3,0.42392]
[1726598826517,2.20014269,2358.5,2358.3,0.42392]
[1726598826716,2.20014269,2358.5,2358.3,0.42391]
[1726598827122,2.20014269,2358.5,2358.4,0.42391]
[1726598828128,2.62404269,2358.5,2358.2,3.63174]
[1726598828425,2.62407269,2358.3,2358.0,0.42397]
[1726598828726,1.64882135,2358.1,2358.0,0.42398]
[1726598828926,1.64870471,2358.1,2357.9,0.42399]
[1726598829126,1.64870471,2358.0,2357.9,0.42399]
[1726598830130,1.64870471,2358.1,2357.9,0.42399]
[1726598830322,1.64870471,2358.1,2357.7,3.2078]
[1726598830523,1.09818518,2357.9,2357.8,0.42401]
[1726598830718,1.09820801,2357.9,2357.7,3.2078]
[1726598831029,1.09820801,2358.0,2357.9,0.424]
[1726598832425,1.64870471,2358.1,2357.7,3.2078]
[1726598832426,1.09820801,2358.1,2358.0,0.42398]
[1726598832827,1.64870471,2358.2,2358.0,10.7486]
[1726598832828,1.09767128,2358.2,2358.0,10.7486]
[1726598833129,1.09767128,2358.3,2358.2,0.42394]
[1726598833426,2.87960471,2358.4,2358.1,0.4033]
[1726598833627,1.09806525,2358.2,2358.1,0.82726]
[1726598834329,1.09806525,2358.2,2358.1,0.42396]
[1726598835031,1.09806525,2358.2,2358.0,0.42396]
[1726598835219,1.09806525,2358.2,2357.8,0.42401]
[1726598835220,4.94870471,2358.1,2357.8,0.42401]
[1726598835421,4.94870471,2358.1,2357.7,3.2078]
[1726598835422,1.09857796,2358.0,2357.9,0.42399]
[1726598835731,0.82009,2358.0,2357.8,0.42401]
[1726598835932,1.90612818,2357.9,2357.8,0.42401]
[1726598836122,0.8074,2357.9,2357.8,0.42401]
[1726598836323,1.90612818,2357.9,2357.8,0.42401]
[1726598836831,0.8074,2357.9,2357.8,0.42401]
[1726598837631,19.71473818,2357.9,2357.5,0.42406]
[1726598837828,1.52245018,2357.7,2357.5,0.42406]
[1726598838329,1.52245018,2357.7,2357.3,3.2078]
[1726598838330,0.3911,2357.6,2357.3,3.2078]
[1726598838535,0.3911,2357.6,2357.5,0.42407]
[1726598839131,0.81515,2357.6,2357.5,0.42407]
[1726598839428,0.42407,2357.5,2357.1,0.80556551]
[1726598839634,0.42407,2357.5,2357.3,0.42409]
[1726598839635,0.7965,2357.4,2357.3,0.42409]
[1726598840038,5.0389,2357.4,2357.3,0.42409]
[1726598840523,5.0389,2357.4,2357.0,0.4111]
[1726598840730,0.7965,2357.4,2357.3,0.4241]
[1726598841124,5.0389,2357.4,2357.3,0.4241]
[1726598842626,0.4083,2357.4,2357.3,0.4241]
[1726598842832,2.07273471,2357.8,2357.3,8.60267]
[1726598842833,1.09730834,2357.8,2357.3,8.60267]
[1726598843135,4.85650471,2357.9,2357.8,0.42401]
[1726598843136,0.7836,2357.9,2357.8,0.42401]
[1726598843535,0.7836,2357.9,2357.3,1.45437]
[1726598843536,0.42406,2357.6,2357.3,0.42409]
[1726598843727,0.42406,2357.6,2356.7,4.01336551]
[1726598843728,3.3,2357.4,2356.7,3.2078]
[1726598843925,3.3,2357.0,2356.7,3.2078]
[1726598844135,6.5078,2356.8,2356.4,0.42425]
[1726598844434,1.49024,2356.7,2356.2,3.2078]
[1726598844632,0.42424,2356.6,2356.3,0.42427]
[1726598844833,0.42424,2356.6,2356.4,0.42426]
[1726598845142,0.85392,2356.7,2356.5,0.42424]
[1726598845435,3.3,2356.6,2355.5,3.41893194]
[1726598845732,3.3,2356.6,2355.8,3.2078]
[1726598845733,1.09271622,2356.5,2355.8,3.2078]
[1726598845938,3.6375,2356.7,2356.5,0.42423]
[1726598846137,3.6375,2356.7,2356.1,3.2078]
[1726598846435,3.6375,2356.7,2356.5,0.42424]
[1726598846630,3.6375,2356.7,2356.1,3.2078]
[1726598846826,3.6375,2356.7,2355.9,4.75756]
[1726598846827,3.6375,2356.7,2355.9,3.6967]
[1726598847133,3.3,2357.1,2356.5,6.5078]
[1726598847334,3.3,2357.1,2356.6,0.8227]
[1726598847539,3.3,2357.1,2356.8,0.42418]
[1726598847938,3.3,2357.1,2356.6,0.8227]
[1726598848327,3.3,2357.1,2356.8,0.42418]
[1726598848638,3.3,2357.1,2356.9,0.42417]
[1726598848832,3.72414,2357.1,2356.8,0.42418]
[1726598849030,3.3,2357.1,2356.6,0.8227]
[1726598849232,3.72415,2357.1,2356.8,0.42418]
[1726598849732,3.72415,2357.1,2356.6,0.8227]
[1726598849733,3.3,2357.1,2356.9,0.42417]
[1726598849935,3.72414,2357.1,2356.9,0.42417]
[1726598850334,0.7897,2357.2,2356.6,0.8227]
[1726598850838,0.42414,2357.1,2356.8,0.42418]
[1726598851032,0.42414,2357.1,2356.6,0.8227]
[1726598851238,1.21383,2357.2,2356.6,0.8227]
[1726598851440,3.63197,2357.0,2356.7,0.4242]
[1726598851638,3.63197,2357.0,2356.6,0.8227]
[1726598852030,3.63197,2357.0,2356.8,0.42419]
[1726598852638,3.2078,2357.0,2356.8,0.42419]
[1726598853236,3.63197,2357.0,2356.6,0.8227]
[1726598853437,3.2078,2357.0,2356.8,0.42419]
[1726598854040,0.42418,2356.9,2356.7,0.42421]
[1726598854239,3.63197,2357.0,2356.8,0.42419]
[1726598855631,3.2078,2357.0,2356.8,0.42419]
[1726598855836,3.63196,2357.0,2356.8,0.42419]
[1726598856036,3.63196,2357.0,2356.9,0.42418]
[1726598856432,3.63196,2357.0,2356.8,0.42418]
[1726598857042,3.63196,2357.0,2356.9,0.42418]
[1726598857552,3.63196,2357.0,2356.8,0.42418]
[1726598858138,1.09271622,2357.7,2356.9,7.5432]
[1726598858342,0.3985,2357.9,2357.4,3.3]
[1726598858539,4.0311,2358.2,2357.8,3.3]
[1726598858838,1.09271622,2358.5,2358.4,0.4239]
[1726598858839,3.2078,2358.5,2358.4,0.4239]
[1726598859043,3.2078,2358.5,2358.4,3.7239]
[1726598859241,3.2078,2358.5,2358.4,3.3]
[1726598859543,0.42391,2358.4,2357.6,3.6322]
[1726598859735,0.42396,2358.1,2357.9,0.42399]
[1726598859934,0.42396,2358.1,2357.6,3.6322]
[1726598859935,3.63175,2358.2,2357.7,3.3]
[1726598860140,1.26143,2358.3,2358.1,0.42396]
[1726598860335,0.3946,2358.4,2357.9,6.5078]
[1726598860539,0.81851,2358.4,2358.2,0.42394]
[1726598860744,0.81851,2358.4,2357.9,7.56778]
[1726598860745,0.81852,2358.4,2357.9,6.5078]
[1726598860950,0.42393,2358.3,2358.1,0.42395]
[1726598861244,0.81851,2358.4,2358.1,0.42395]
[1726598861857,0.81852,2358.4,2358.1,0.42395]
[1726598862143,0.3946,2358.4,2357.9,7.56777]
[1726598862446,3.2078,2358.6,2358.0,4.35995]
[1726598862645,3.2078,2358.6,2358.2,0.42394]
[1726598862846,0.42389,2358.5,2358.2,0.42394]
[1726598863343,0.42389,2358.5,2358.3,0.42392]
[1726598863543,0.42392,2358.4,2357.9,7.56778]
[1726598863848,0.4239,2358.5,2358.3,0.42392]
[1726598864043,3.2078,2358.6,2357.9,7.56778]
[1726598864240,4.2675,2358.6,2358.2,0.42393]
[1726598864544,1.05987,2358.2,2357.7,0.80556551]
[1726598864746,1.05991,2358.1,2357.8,0.42401]
[1726598865142,0.42401,2357.8,2357.7,0.80556551]
[1726598865344,1.06001,2357.9,2357.6,3.2078]
[1726598865345,0.42403,2357.7,2357.6,3.2078]
[1726598866153,0.42403,2357.8,2357.7,0.42403]
[1726598866649,4.66563,2357.8,2357.7,0.42403]
[1726598866951,4.66563,2357.8,2357.6,3.63184]
[1726598867144,0.42403,2357.7,2357.6,3.63184]
[1726598867641,1.06001,2357.9,2357.6,0.42404]
[1726598868056,0.42404,2357.7,2357.6,0.42404]
[1726598869245,1.06001,2357.9,2357.7,0.42403]
[1726598869246,0.42403,2357.8,2357.7,0.42403]
[1726598869446,0.42404,2357.7,2357.6,0.42404]
[1726598871653,1.09271622,2357.8,2357.7,0.42403]
[1726598871847,1.09271622,2357.9,2357.8,0.42401]
[1726598872054,2.06306434,2358.0,2357.9,0.424]
[1726598872055,1.51669622,2358.0,2357.9,0.424]
[1726598872248,0.42398,2358.0,2357.9,0.424]
[1726598872454,1.51668622,2358.1,2358.0,0.42398]
[1726598873259,2.06304434,2358.1,2358.0,0.42398]
[1726598873566,0.42397,2358.1,2358.0,0.42398]
[1726598873763,0.42398,2358.0,2357.9,0.42398]
[1726598874052,1.0983994,2358.0,2357.6,3.2078]
[1726598874249,1.5224094,2357.9,2357.8,0.42401]
[1726598876262,0.42404,2357.7,2357.6,0.42404]
[1726598876451,1.52267485,2357.7,2357.6,0.42404]
[1726598876657,1.09863485,2357.7,2357.6,0.42404]
[1726598877565,0.42407,2357.6,2357.5,0.42406]
[1726598877751,0.42407,2357.5,2357.4,0.4265]
[1726598878069,0.42407,2357.5,2356.8,1.22975551]
[1726598878070,0.42418,2356.9,2356.8,1.22975551]
[1726598878256,0.42418,2356.9,2356.8,0.42419]
[1726598878456,1.09825354,2356.9,2356.8,0.42419]
[1726598880560,1.09825354,2357.1,2357.0,0.42416]
[1726598880768,1.09825354,2357.1,2357.0,4.66656]
[1726598881068,1.09825354,2357.1,2357.0,0.42416]
[1726598881755,1.09825354,2357.1,2357.0,5.72696]
[1726598881956,1.64738031,2357.4,2357.3,0.4241]
[1726598882462,1.64738031,2357.5,2357.4,1.48431]
[1726598882667,1.64738031,2357.6,2357.5,0.42407]
[1726598882858,1.64738031,2357.6,2357.5,7.87347]
[1726598883064,1.64819196,2357.7,2357.6,0.42405]
[1726598883361,2.19650709,2357.8,2357.7,0.42403]
[1726598883558,2.19650709,2357.8,2356.5,1.16656736]
[1726598883559,3.25653709,2357.9,2357.4,0.42408]
[1726598883755,3.25653709,2357.9,2357.2,3.54509671]
[1726598883756,1.64854887,2357.6,2357.2,3.2078]
[1726598883956,4.07,2357.7,2357.0,1.23246551]
[1726598883957,1.64854887,2357.4,2357.1,0.42412]
[1726598884159,1.64854887,2357.4,2357.2,0.42412]
[1726598884160,2.07264887,2357.4,2357.2,0.42412]
[1726598884363,1.64854887,2357.4,2356.8,3.2078]
[1726598884670,1.64854887,2357.3,2356.8,3.2078]
[1726598884974,1.64854887,2357.3,2356.6,0.80556551]
[1726598884976,1.64854887,2357.1,2356.6,0.80556551]
[1726598885202,4.26811,2357.2,2356.8,0.42418]
[1726598885203,2.07271887,2357.0,2356.8,0.42418]
[1726598885357,2.07271887,2357.0,2356.5,0.3915]
[1726598885358,2.04234887,2357.0,2356.5,0.3915]
[1726598885669,0.3938,2357.0,2356.9,0.42418]
[1726598885863,2.46651887,2357.0,2356.5,3.5993]
[1726598886164,0.42418,2356.9,2356.7,0.4242]
[1726598886366,0.42419,2356.8,2356.6,0.42422]
[1726598886550,2.48792887,2356.9,2356.7,0.4242]
[1726598886758,2.48792887,2356.9,2356.5,0.3915]
[1726598886759,0.4242,2356.8,2356.6,0.42422]
[1726598886953,1.64854887,2356.8,2356.5,0.3915]
[1726598887257,1.64854887,2356.8,2356.6,0.42423]
[1726598887458,2.07275887,2356.8,2356.6,0.42423]
[1726598887663,0.42421,2356.7,2356.6,0.42423]
[1726598887872,2.07275887,2356.7,2356.3,0.8085]
[1726598888068,2.70905887,2356.8,2356.3,0.8085]
[1726598888367,2.70905887,2356.8,2356.5,0.42425]
[1726598888368,0.42423,2356.6,2356.5,0.42425]
[1726598888666,0.42423,2356.6,2356.5,0.42423]
[1726598888862,0.42425,2356.5,2356.3,1.23278]
[1726598889058,0.4116,2356.5,2356.4,0.42427]
[1726598889660,0.83586,2356.5,2356.3,0.42427]
[1726598889863,0.83586,2356.5,2356.4,0.42427]
[1726598890263,0.4116,2356.5,2356.3,0.42427]
[1726598890464,0.4116,2356.5,2356.4,0.42427]
[1726598891161,0.42421,2356.7,2356.2,4.26855]
[1726598891162,1.64688894,2356.7,2356.6,0.42423]
[1726598891358,0.42421,2356.7,2356.6,0.42423]
[1726598891767,1.64688894,2356.8,2356.3,1.0607]
[1726598891964,2.70738894,2356.8,2356.2,4.26855]
[1726598892165,2.70738894,2356.8,2356.3,1.06072]
[1726598892460,2.70738894,2356.8,2356.2,0.42429]
[1726598892461,0.42428,2356.3,2356.2,0.42429]
[1726598892866,0.42428,2356.3,2355.6,0.80556551]
[1726598892867,1.06081,2356.1,2355.6,0.80556551]
[1726598893166,0.42446,2355.3,2355.2,0.80556551]
[1726598893462,3.2078,2355.7,2355.0,0.42451]
[1726598893463,0.42449,2355.2,2355.0,0.42451]
[1726598893665,1.06108,2355.5,2354.9,0.42452]
[1726598893666,1.06117,2355.3,2354.9,0.42452]
[1726598893865,3.2078,2355.4,2354.8,0.8062]
[1726598893866,2.04955807,2355.4,2354.8,0.8062]
[1726598894065,1.64605807,2355.5,2355.4,0.42445]
[1726598894372,0.4189,2355.6,2355.5,0.42443]
[1726598894682,0.4189,2355.6,2355.4,0.42444]
[1726598894868,0.42443,2355.5,2355.2,0.42447]
[1726598895065,3.2078,2355.4,2355.3,0.42446]
[1726598895366,0.4189,2355.6,2355.4,0.42444]
[1726598895668,3.2078,2355.6,2355.0,3.2078]
[1726598895970,3.6173,2355.5,2354.8,0.3954]
[1726598896268,0.42447,2355.3,2355.0,0.4245]
[1726598896465,3.6173,2355.5,2354.9,0.3922]
[1726598896767,0.427,2355.2,2354.9,0.42452]
[1726598896974,0.85149,2355.2,2354.9,0.42453]
[1726598897263,3.6348,2355.2,2354.7,3.2078]
[1726598897470,3.6348,2355.2,2354.7,3.6353]
[1726598897667,3.6348,2355.2,2354.6,0.3922]
[1726598897872,0.42454,2354.9,2354.4,0.42461]
[1726598898168,0.42454,2354.9,2354.3,4.0409]
[1726598898169,3.2078,2354.9,2354.3,0.4083]
[1726598898468,3.2078,2354.9,2353.9,3.6359]
[1726598898469,3.2078,2354.6,2353.9,0.4248]
[1726598898668,0.396,2354.5,2353.9,0.4248]
[1726598899070,0.396,2354.5,2354.3,0.42464]
[1726598899273,0.396,2354.5,2353.9,3.6326]
[1726598899769,0.42465,2354.3,2353.9,4.0573]
[1726598899970,0.42466,2354.2,2353.9,3.2078]
[1726598900171,3.2078,2354.3,2353.9,3.2078]
[1726598900465,0.4247,2354.0,2353.6,3.63257]
[1726598900666,0.4168,2354.1,2353.7,0.42474]
[1726598900870,0.4247,2354.0,2353.6,3.63255]
[1726598901178,0.4168,2354.1,2353.6,3.2078]
[1726598901469,4.248,2354.0,2353.6,3.2078]
[1726598901671,7.4558,2354.0,2353.2,0.80556551]
[1726598901870,3.2078,2353.7,2353.2,1.23040551]
[1726598902072,3.63256,2353.7,2353.2,0.80556551]
[1726598902275,0.4248,2353.5,2353.2,0.80556551]
[1726598902469,3.2078,2353.7,2353.1,0.4083]
[1726598902669,0.42477,2353.6,2353.1,0.83314]
[1726598902963,3.2078,2353.7,2353.1,0.83315]
[1726598903166,0.42478,2353.6,2353.1,0.4083]
[1726598903374,0.42479,2353.5,2353.1,0.83315]
[1726598903573,3.2078,2353.7,2353.1,0.4083]
[1726598903775,3.2078,2353.7,2353.5,0.42478]
[1726598904077,4.155,2354.4,2353.6,3.2078]
[1726598904270,3.2078,2354.2,2353.6,3.2078]
[1726598905075,0.42471,2354.0,2353.4,0.80556551]
[1726598905273,3.2078,2353.9,2353.5,0.07797681]
[1726598905468,3.2078,2353.9,2353.2,3.2078]
[1726598905777,3.63252,2353.9,2353.4,0.42479]
[1726598905977,3.2078,2353.9,2353.2,3.2078]
[1726598906163,3.2078,2353.9,2353.3,0.50437832]
[1726598906366,3.2078,2353.9,2353.5,3.2078]
[1726598906564,3.2078,2353.9,2353.7,0.42474]
[1726598906771,3.2078,2353.9,2353.5,3.2078]
[1726598906772,3.2078,2353.9,2353.5,3.63258]
[1726598906982,8.0982,2354.3,2353.5,3.2078]
[1726598907273,4.0282,2354.3,2353.5,3.2078]
[1726598907485,0.8204,2354.3,2354.0,0.4247]
[1726598907671,0.8204,2354.3,2354.0,0.42469]
[1726598907970,0.8204,2354.3,2353.9,3.2078]
[1726598907971,0.8204,2354.3,2354.1,0.42468]
[1726598908171,4.07,2354.6,2353.8,3.2078]
[1726598908472,0.4173,2354.4,2354.2,3.2078]
[1726598908774,0.4173,2354.4,2354.3,0.42464]
[1726598908976,0.4173,2354.4,2354.2,0.42465]
[1726598909164,0.4173,2354.4,2354.2,3.2078]
[1726598909370,0.4173,2354.4,2353.8,3.2078]
[1726598909565,0.4173,2354.4,2354.3,0.42464]
[1726598909768,3.63238,2354.7,2354.1,3.2078]
[1726598909973,0.42461,2354.5,2354.2,0.42465]
[1726598910167,0.4246,2354.6,2354.2,0.42465]
[1726598910369,0.42463,2354.4,2354.1,3.63247]
[1726598910565,0.42465,2354.3,2353.9,0.4251]
[1726598910768,1.06164,2354.3,2353.7,3.6064]
[1726598910971,0.8046,2354.2,2353.7,0.3986]
[1726598911177,0.42474,2353.8,2353.5,1.23066551]
[1726598911376,0.42475,2353.7,2353.6,0.07797644]
[1726598911678,3.2078,2353.8,2353.3,0.42481]
[1726598911874,0.42479,2353.5,2353.4,0.07797952]
[1726598912069,0.42479,2353.5,2353.0,4.01336551]
[1726598912070,0.42481,2353.4,2353.3,0.07797952]
[1726598912272,0.42483,2353.3,2353.0,4.43822551]
[1726598912581,3.6326,2353.5,2353.1,0.42486]
[1726598912769,3.2078,2353.5,2353.0,3.2078]
[1726598912966,0.42479,2353.5,2353.2,0.42483]
[1726598913188,0.3962,2353.6,2353.0,3.2078]
[1726598913477,0.3979,2354.0,2353.7,0.42474]
[1726598913676,0.8226,2354.0,2353.3,3.2078]
[1726598913886,0.3979,2354.0,2353.8,0.42472]
[1726598914374,0.42465,2354.3,2353.6,3.2078]
[1726598914576,3.2078,2354.4,2353.6,3.2078]
[1726598914577,3.6057,2354.4,2353.6,3.2078]
[1726598914782,0.4247,2354.0,2353.6,3.2078]
[1726598915079,4.07,2354.2,2353.6,3.2078]
[1726598915281,0.4247,2354.0,2353.7,0.42475]
[1726598915577,3.2078,2354.1,2353.8,0.42473]
[1726598915782,3.63249,2354.1,2353.8,0.42473]
[1726598915983,3.2078,2354.1,2353.8,0.42473]
[1726598916176,3.63248,2354.1,2353.6,3.2078]
[1726598916375,0.42468,2354.1,2353.8,0.42473]
[1726598918071,3.6057,2354.4,2354.0,0.42469]
[1726598918276,0.42466,2354.3,2354.0,0.42469]
[1726598918574,0.3979,2354.4,2354.0,3.2078]
[1726598919176,1.4595,2354.4,2354.0,3.2078]
[1726598919484,0.42467,2354.2,2354.0,3.2078]
[1726598919681,0.42468,2354.1,2354.0,3.2078]
[1726598919882,0.42468,2354.1,2353.8,0.42472]
[1726598920079,0.42468,2354.1,2353.9,0.42471]
[1726598920283,11.5266,2354.0,2352.9,0.80556551]
[1726598920580,11.5266,2354.0,2352.2,3.2078]
[1726598920581,7.2778,2353.0,2352.2,3.2078]
[1726598920787,7.2778,2353.0,2352.3,3.6319]
[1726598920981,0.42491,2352.9,2352.3,3.6319]
[1726598921177,0.8025,2353.2,2352.3,3.6319]
[1726598921379,0.8025,2353.2,2352.6,3.2078]
[1726598921684,0.4058,2353.2,2352.6,3.2078]
[1726598921885,0.4058,2353.2,2352.7,0.3976]
[1726598922081,0.4058,2353.2,2352.9,0.42489]
[1726598922282,3.2078,2353.3,2352.9,3.2078]
[1726598922483,3.2078,2353.6,2352.9,3.2078]
[1726598922682,3.2078,2353.6,2353.0,0.4278]
[1726598922989,7.6745,2354.2,2353.4,3.2078]
[1726598923185,0.42477,2353.7,2353.4,3.2078]
[1726598923390,0.4286,2354.1,2353.4,3.2078]
[1726598923583,0.4286,2354.1,2353.7,3.63255]
[1726598923890,0.42474,2353.8,2353.4,3.2078]
[1726598924080,7.70252,2353.9,2353.4,0.4248]
[1726598924280,7.70252,2353.9,2353.1,3.2078]
[1726598924281,7.2778,2353.9,2353.5,0.42478]
[1726598924476,7.2778,2353.9,2353.4,3.2078]
[1726598924883,0.42475,2353.7,2353.2,3.63263]
[1726598925086,7.2778,2353.9,2353.2,3.2078]
[1726598925280,7.2778,2353.9,2353.3,0.42482]
[1726598925475,7.70253,2353.9,2353.2,3.2078]
[1726598925681,0.42479,2353.6,2353.2,3.2078]
[1726598925882,7.70258,2353.6,2353.1,0.42485]
[1726598926089,3.2078,2353.6,2353.2,3.2078]
[1726598926382,3.2078,2353.6,2353.2,3.63263]
[1726598926590,3.2078,2353.6,2353.0,0.4278]
[1726598926780,0.4123,2353.5,2353.1,0.42485]
[1726598927191,3.2078,2353.6,2353.3,0.42482]
[1726598927588,3.2078,2353.6,2353.2,3.2078]
[1726598927884,0.4123,2353.8,2353.3,0.42481]
[1726598928087,0.83704,2353.8,2353.2,3.2078]
[1726598928286,0.42476,2353.7,2353.3,0.42482]
[1726598928481,0.42478,2353.6,2353.2,3.63263]
[1726598928687,0.42476,2353.7,2353.3,0.42482]